fUST/lending_fUST_20250725
["ID","MTS","AMOUNT","RATE_DAILY","PERIOD"]
[374647247,1753398632405,-247.78762777,0.00018748,2]
[374647248,1753398632415,-215.0738,0.00018748,2]
[374647249,1753398632425,-300.0,0.00018749,2]
[374647250,1753398632435,-300.0,0.00018749,2]
[374647251,1753398632444,-300.0,0.00018749,2]
[374647252,1753398632454,-300.0,0.00018749,2]
[374647253,1753398632464,-1200.0,0.00018749,2]
[374647254,1753398632474,-31.75944869,0.0001875,2]
[374647255,1753398632484,-500.0,0.0001875,2]
[374647256,1753398632494,-500.0,0.0001875,2]
[374647258,1753398632504,-305.18842374,0.0001875,2]
[374647259,1753398632513,-245.41182043,0.0001875,2]
[374647260,1753398632523,-575.66765438,0.0001875,2]
[374647261,1753398632535,-460.0,0.0001875,2]
[374647262,1753398632545,-460.0,0.0001875,2]
[374647263,1753398632555,-460.0,0.0001875,2]
[374647264,1753398632565,-460.0,0.0001875,2]
[374647265,1753398632574,-460.0,0.0001875,2]
[374647266,1753398632583,-460.0,0.0001875,2]
[374647267,1753398632594,-460.0,0.0001875,2]
[374647269,1753398632603,-335.84176392,0.0001875,2]
[374647270,1753398632613,-460.0,0.0001875,2]
[374647271,1753398632623,-460.0,0.0001875,2]
[374647272,1753398632633,-460.0,0.0001875,2]
[374647273,1753398632642,-500.0,0.00018751,2]
[374647274,1753398632652,-318.5055241,0.00018751,2]
[374647275,1753398632665,-141.4944759,0.00018751,2]
[374647276,1753398632674,-460.0,0.00018751,2]
[374647278,1753398632684,-460.0,0.00018751,2]
[374647280,1753398632694,-460.0,0.00018751,2]
[374647282,1753398632704,-460.0,0.00018751,2]
[374647284,1753398632714,-274.867477,0.00018751,2]
[374647286,1753398632723,-468.64354089,0.00018751,2]
[374647288,1753398632733,-460.0,0.00018751,2]
[374647290,1753398632743,-520.06713835,0.00018751,2]
[374647292,1753398632752,-385.20603576,0.00018751,2]
[374647294,1753398632762,-460.0,0.00018751,2]
[374647296,1753398632772,-460.0,0.00018751,2]
[374647298,1753398632781,-460.0,0.00018751,2]
[374647300,1753398632791,-460.0,0.00018751,2]
[374647302,1753398632800,-460.0,0.00018751,2]
[374647304,1753398632810,-460.0,0.00018751,2]
[374647306,1753398632820,-460.0,0.00018751,2]
[374647308,1753398632830,-314.904692,0.00018751,2]
[374647310,1753398632840,-396.39236859,0.00018751,2]
[374647312,1753398632849,-206.53217699,0.00018751,2]
[374647425,1753398638336,-460.0,0.0001875,2]
[374647426,1753398638346,-460.0,0.0001875,2]
[374647428,1753398638357,-253.46782301,0.00018751,2]
[374647430,1753398638367,-460.0,0.00018751,2]
[374647432,1753398638376,-460.0,0.00018751,2]
[374647433,1753398638385,-460.0,0.00018751,2]
[374647435,1753398638395,-266.09217699,0.00018751,2]
[374647444,1753398638489,-193.90782301,0.00018751,2]
[374647446,1753398638498,-322.05024405,0.00018751,2]
[374647448,1753398638510,-68.42477471,0.00018751,2]
[374647450,1753398638520,-246.67960986,0.00018751,2]
[374647451,1753398638530,-471.11,0.00018751,2]
[374647453,1753398638539,-460.0,0.00018751,2]
[374647455,1753398638549,-460.0,0.00018751,2]
[374647456,1753398638558,-2931.05,0.00018751,2]
[374647457,1753398638568,-406.07693241,0.00018751,2]
[374647488,1753398640527,-460.0,0.0001875,2]
[374647489,1753398640538,-1053.05018586,0.00018751,2]
[374647490,1753398640552,-5055.49288173,0.00018751,2]
[374647491,1753398640562,-460.0,0.00018751,2]
[374647492,1753398640572,-460.0,0.00018751,2]
[374647493,1753398640582,-773.66,0.00018751,2]
[374647494,1753398640591,-460.0,0.00018751,2]
[374647495,1753398640601,-460.0,0.00018751,2]
[374647496,1753398640610,-460.0,0.00018751,2]
[374647497,1753398640620,-460.0,0.00018751,2]
[374647498,1753398640630,-473.44425675,0.00018751,2]
[374647499,1753398640640,-460.0,0.00018751,2]
[374647500,1753398640650,-3205.59,0.00018751,2]
[374647501,1753398640660,-460.0,0.00018751,2]
[374647502,1753398640670,-541.48219479,0.00018751,2]
[374647503,1753398640680,-605.2,0.00018751,2]
[374647504,1753398640690,-460.0,0.00018751,2]
[374647505,1753398640700,-460.0,0.00018751,2]
[374647506,1753398640710,-460.0,0.00018751,2]
[374647507,1753398640719,-2554.37,0.00018751,2]
[374647508,1753398640729,-668.76,0.00018751,2]
[374647509,1753398640739,-460.0,0.00018751,2]
[374647510,1753398640748,-467.15668466,0.00018751,2]
[374647511,1753398640757,-460.0,0.00018751,2]
[374647512,1753398640767,-460.0,0.00018751,2]
[374647513,1753398640776,-2120.14,0.00018751,2]
[374647514,1753398640785,-460.0,0.00018751,2]
[374647515,1753398640795,-460.0,0.00018751,2]
[374647516,1753398640804,-568.2,0.00018751,2]
[374647517,1753398640813,-848.55,0.00018751,2]
[374647518,1753398640824,-599.98,0.00018751,2]
[374647519,1753398640833,-461.07052971,0.00018751,2]
[374647520,1753398640843,-460.0,0.00018751,2]
[374647521,1753398640854,-460.0,0.00018751,2]
[374647522,1753398640864,-2124.17,0.00018751,2]
[374647523,1753398640874,-460.0,0.00018751,2]
[374647524,1753398640884,-705.76,0.00018751,2]
[374647525,1753398640894,-652.56,0.00018751,2]
[374647526,1753398640905,-1082.82,0.00018751,2]
[374647527,1753398640915,-460.0,0.00018751,2]
[374647528,1753398640925,-460.0,0.00018751,2]
[374647529,1753398640935,-460.0,0.00018751,2]
[374647530,1753398640945,-647.42,0.00018751,2]
[374647531,1753398640955,-461.80990544,0.00018752,2]
[374647532,1753398640966,-460.0,0.00018752,2]
[374647533,1753398640976,-460.0,0.00018752,2]
[374647534,1753398640985,-460.0,0.00018752,2]
[374647535,1753398640997,-198.91500329,0.00018752,2]
[374647536,1753398641007,-210.78235737,0.00018752,2]
[374647537,1753398641018,-460.0,0.00018752,2]
[374647538,1753398641028,-460.0,0.00018752,2]
[374647539,1753398641039,-576.43038979,0.00018752,2]
[374647540,1753398641049,-460.0,0.00018752,2]
[374647541,1753398641061,-460.0,0.00018752,2]
[374647542,1753398641071,-460.0,0.00018752,2]
[374647543,1753398641080,-460.0,0.00018752,2]
[374647544,1753398641091,-460.0,0.00018752,2]
[374647545,1753398641100,-460.0,0.00018752,2]
[374647546,1753398641111,-460.0,0.00018752,2]
[374647547,1753398641122,-460.0,0.00018752,2]
[374647548,1753398641131,-460.0,0.00018752,2]
[374647549,1753398641142,-463.36643536,0.00018752,2]
[374647550,1753398641153,-209.02919534,0.00018752,2]
[374647551,1753398641163,-460.0,0.00018752,2]
[374647552,1753398641174,-460.0,0.00018752,2]
[374647553,1753398641184,-460.0,0.00018752,2]
[374647554,1753398641196,-460.0,0.00018752,2]
[374647555,1753398641206,-460.0,0.00018752,2]
[374647556,1753398641216,-463.72857891,0.00018752,2]
[374647557,1753398641225,-458.53833289,0.00018752,2]
[374647558,1753398641240,-460.0,0.00018752,2]
[374647559,1753398641250,-460.0,0.00018752,2]
[374647560,1753398641259,-460.0,0.00018752,2]
[374647561,1753398641270,-460.0,0.00018752,2]
[374647562,1753398641280,-462.25412767,0.00018752,2]
[374647563,1753398641292,-613.64,0.00018752,2]
[374647564,1753398641303,-460.0,0.00018752,2]
[374647565,1753398641313,-476.72,0.00018752,2]
[374647566,1753398641323,-460.0,0.00018752,2]
[374647567,1753398641333,-460.0,0.00018752,2]
[374647568,1753398641342,-460.0,0.00018752,2]
[374647569,1753398641351,-460.0,0.00018752,2]
[374647570,1753398641361,-352.33409676,0.00018752,2]
[374647571,1753398641370,-460.0,0.00018752,2]
[374647572,1753398641380,-460.0,0.00018752,2]
[374647573,1753398641390,-853.02,0.00018752,2]
[374647574,1753398641400,-473.82,0.00018752,2]
[374647575,1753398641411,-460.0,0.00018752,2]
[374647576,1753398641420,-460.0,0.00018752,2]
[374647577,1753398641430,-460.0,0.00018752,2]
[374647578,1753398641439,-2414.33,0.00018752,2]
[374647579,1753398641448,-460.0,0.00018752,2]
[374647580,1753398641458,-460.0,0.00018752,2]
[374647581,1753398641467,-97.45502953,0.00018752,2]
[374647582,1753398641480,-362.54497047,0.00018752,2]
[374647583,1753398641490,-460.0,0.00018752,2]
[374647584,1753398641499,-460.0,0.00018752,2]
[374647585,1753398641510,-460.0,0.00018752,2]
[374647586,1753398641519,-460.0,0.00018752,2]
[374647587,1753398641529,-1119.37,0.00018752,2]
[374647588,1753398641538,-460.0,0.00018752,2]
[374647589,1753398641548,-460.0,0.00018752,2]
[374647590,1753398641558,-460.0,0.00018752,2]
[374647591,1753398641567,-602.1,0.00018752,2]
[374647592,1753398641577,-969.05,0.00018752,2]
[374647593,1753398641586,-460.0,0.00018752,2]
[374647594,1753398641596,-977.05,0.00018752,2]
[374647595,1753398641606,-460.0,0.00018752,2]
[374647596,1753398641615,-460.0,0.00018752,2]
[374647597,1753398641625,-460.0,0.00018752,2]
[374647598,1753398641635,-460.77838149,0.00018752,2]
[374647599,1753398641644,-460.0,0.00018752,2]
[374647600,1753398641653,-591.32,0.00018752,2]
[374647601,1753398641663,-460.0,0.00018752,2]
[374647602,1753398641672,-721.35,0.00018752,2]
[374647603,1753398641682,-460.72,0.00018752,2]
[374647604,1753398641692,-460.0,0.00018752,2]
[374647605,1753398641702,-542.92,0.00018752,2]
[374647606,1753398641712,-550.86,0.00018752,2]
[374647607,1753398641722,-460.0,0.00018752,2]
[374647608,1753398641731,-460.0,0.00018752,2]
[374647609,1753398641743,-460.0,0.00018752,2]
[374647610,1753398641753,-845.07,0.00018752,2]
[374647611,1753398641763,-460.0,0.00018752,2]
[374647612,1753398641773,-460.0,0.00018752,2]
[374647613,1753398641783,-799.83,0.00018752,2]
[374647614,1753398641892,-1240.33,0.00018752,2]
[374647615,1753398641903,-460.0,0.00018752,2]
[374647616,1753398641912,-460.0,0.00018752,2]
[374647617,1753398641922,-858.74,0.00018752,2]
[374647618,1753398641932,-460.0,0.00018752,2]
[374647619,1753398641942,-460.0,0.00018752,2]
[374647620,1753398641951,-235.52113804,0.00018752,2]
[374647621,1753398641963,-224.47886196,0.00018752,2]
[374647622,1753398641973,-142.52113801,0.00018752,2]
[374647692,1753398874647,167.576345,0.00017754,2]
[374647694,1753398905729,245.718296,0.00013699,2]
[374647695,1753398941492,18843.9581883,0.00017745,2]
[374647696,1753399164103,152.0,0.000185,2]
[374647698,1753399172124,-236.05188442,0.0001865,2]
[374647699,1753399175107,207.22702354,0.00018091,2]
[374647700,1753399175138,58.16876946,0.00018091,2]
[374647701,1753399175493,271.72506237,0.00018092,2]
[374647702,1753399176934,-215.04589078,0.0001865,2]
[374647703,1753399179044,-201.89033199,0.0001865,2]
[374647704,1753399181289,-365.4033375,0.0001865,2]
[374647705,1753399183957,-178.34470795,0.0001865,2]
[374647706,1753399187847,-253.07573178,0.0001865,2]
[374647707,1753399190611,-186.03276155,0.00018643,3]
[374647708,1753399194122,-174.0,0.00018643,3]
[374647709,1753399196319,-311.33516509,0.00018643,3]
[374647710,1753399198486,-181.01207336,0.00018643,3]
[374647711,1753399198512,-25.66819816,0.0001865,2]
[374647712,1753399200267,-164.50779662,0.0001865,2]
[374647713,1753399200293,-21.53445126,0.0001865,2]
[374647714,1753399226728,-151.95175962,0.00018643,3]
[374647715,1753399230037,-196.67677459,0.00018643,3]
[374647716,1753399234320,-151.0,0.00018643,3]
[374647717,1753399235858,-98.64146579,0.00018643,3]
[374647718,1753399235881,-90.5284951,0.00018643,3]
[374647719,1753399239058,-218.69530626,0.00018643,3]
[374647720,1753399242925,-83.49619864,0.00018643,3]
[374647721,1753399242949,-176.71233421,0.0001865,2]
[374647722,1753399245013,-166.96933162,0.0001865,2]
[374647723,1753399250419,-184.18150885,0.0001865,2]
[374647724,1753399252551,-151.0,0.0001865,2]
[374647725,1753399255546,-63.91539335,0.0001865,2]
[374647726,1753399255569,-159.22632321,0.0001865,2]
[374647727,1753399257790,-140.77367679,0.0001865,2]
[374647728,1753399257813,-63.97287059,0.0001865,2]
[374647729,1753399264023,-238.40819577,0.00018649,2]
[374647730,1753399266287,-61.59180423,0.00018649,2]
[374647731,1753399266310,-91.83329136,0.0001865,2]
[374647732,1753399268026,-144.19383805,0.0001865,2]
[374647733,1753399268049,-97.47850428,0.0001865,2]
[374647734,1753399269687,-79.52149572,0.0001865,2]
[374647735,1753399269710,-95.65555352,0.0001865,2]
[374647736,1753399272426,-204.34444648,0.0001865,2]
[374647737,1753399272451,-104.34535465,0.0001865,2]
[374647738,1753399275525,-311.76820254,0.0001865,2]
[374647739,1753399281534,-229.51730249,0.0001865,2]
[374647740,1753399284230,-160.05037009,0.00018649,2]
[374647741,1753399287005,-216.75490508,0.00018649,2]
[374647742,1753399288782,-162.47786734,0.00018649,2]
[374647743,1753399292181,-258.02257646,0.00018649,2]
[374647744,1753399294435,-253.45409962,0.00018643,3]
[374647745,1753399299027,-109.19590038,0.00018643,3]
[374647746,1753399299051,-48.46496187,0.00018649,2]
[374647747,1753399302447,-342.33913775,0.00018649,2]
[374647748,1753399304086,-11.89018141,0.00018649,2]
[374647749,1753399304109,-197.64262118,0.0001865,2]
[374647750,1753399306226,-267.10518362,0.0001865,2]
[374647751,1753399309067,-89.62133552,0.0001865,2]
[374647752,1753399309092,-133.06014321,0.0001865,2]
[374647753,1753399312434,-303.21908336,0.0001865,2]
[374647754,1753399316540,-63.72077343,0.0001865,2]
[374647755,1753399316569,-215.72131584,0.0001865,2]
[374647756,1753399318868,-282.24029138,0.0001865,2]
[374647757,1753399323315,-2.03839278,0.0001865,2]
[374647758,1753399323340,-238.96165797,0.0001865,2]
[374647759,1753399326899,-178.0,0.0001865,2]
[374647760,1753399329163,-83.03834203,0.0001865,2]
[374647761,1753399329188,-92.99639258,0.0001865,2]
[374647762,1753399332948,-213.68929825,0.00018649,2]
[374647763,1753399335299,-86.31070175,0.00018649,2]
[374647764,1753399335329,-76.30747827,0.0001865,2]
[374647765,1753399338563,-282.13344993,0.0001865,2]
[374647766,1753399340230,-48.56267922,0.0001865,2]
[374647767,1753399340256,-154.60892935,0.0001865,2]
[374647768,1753399342367,-305.85420989,0.0001865,2]
[374647769,1753399346496,-39.53686076,0.0001865,2]
[374647770,1753399346520,-309.15237719,0.0001865,2]
[374647771,1753399353954,-190.84762281,0.0001865,2]
[374647772,1753399353979,-68.98872011,0.0001865,2]
[374647773,1753399355623,-222.97186587,0.0001865,2]
[374647774,1753399377948,-208.03941402,0.0001865,2]
[374647775,1753399377973,-500.0,0.0001865,2]
[374647776,1753399377996,-500.0,0.0001865,2]
[374647777,1753399378018,-500.0,0.0001865,2]
[374647778,1753399378042,-500.0,0.0001865,2]
[374647779,1753399378069,-568.75963899,0.0001865,2]
[374647780,1753399378092,-298.08079352,0.0001865,2]
[374647781,1753399378122,-500.0,0.0001865,2]
[374647782,1753399378144,-435.49543323,0.0001865,2]
[374647783,1753399378168,-500.0,0.0001865,2]
[374647784,1753399378196,-190.49881851,0.0001865,2]
[374647785,1753399378218,-202.39,0.0001865,2]
[374647786,1753399378243,-500.0,0.0001865,2]
[374647787,1753399378265,-246.46778356,0.0001865,2]
[374647788,1753399378287,-180.84289319,0.0001865,2]
[374647789,1753399378308,-241.67234233,0.0001865,2]
[374647790,1753399378332,-193.35866136,0.0001865,2]
[374647791,1753399378354,-263.40807537,0.0001865,2]
[374647792,1753399378376,-153.42509559,0.0001865,2]
[374647793,1753399378397,-215.10205148,0.0001865,2]
[374647794,1753399378421,-322.52823743,0.0001865,2]
[374647795,1753399378444,-303.21646557,0.0001865,2]
[374647796,1753399378466,-201.6531018,0.0001865,2]
[374647797,1753399378490,-152.05071378,0.0001865,2]
[374647798,1753399378511,-460.0,0.0001865,2]
[374647799,1753399378532,-460.0,0.0001865,2]
[374647800,1753399378553,-212.58,0.0001865,2]
[374647801,1753399378575,-460.0,0.0001865,2]
[374647802,1753399378597,-460.0,0.0001865,2]
[374647803,1753399378621,-70.43048027,0.0001865,2]
[374647804,1753399380123,-290.34280605,0.0001865,2]
[374647805,1753399385798,-192.34568573,0.00018649,2]
[374647806,1753399388066,-107.65431427,0.00018649,2]
[374647807,1753399388093,-13.48201068,0.0001865,2]
[374647808,1753399388116,-39.90377653,0.0001865,2]
[374647809,1753399390404,-194.19385324,0.0001865,2]
[374647810,1753399392589,-225.90237023,0.0001865,2]
[374647811,1753399392613,-277.0502175,0.0001865,2]
[374647812,1753399394822,-277.0502175,0.00018628,2]
[374647813,1753399401127,-315.53981915,0.00018628,2]
[374647814,1753399403328,-277.84447145,0.00018628,2]
[374647815,1753399412292,-292.57279506,0.00018628,2]
[374647816,1753399415292,-207.42720494,0.00018628,2]
[374647817,1753399419092,-342.19071281,0.00018628,2]
[374647818,1753399423468,714.06522,0.00018,120]
[374647819,1753399425295,-283.90796671,0.00018628,2]
[374647820,1753399431240,-104.81968196,0.00018628,2]
[374647821,1753399431266,-182.3665166,0.0001865,2]
[374647822,1753399435013,-7.07314193,0.0001865,2]
[374647823,1753399435040,-222.97186587,0.0001865,2]
[374647824,1753399435063,-4.27786554,0.0001865,2]
[374647826,1753399438311,-158.36025649,0.0001865,2]
[374647827,1753399440168,-297.36187797,0.0001865,2]
[374647828,1753399440192,-390.4499269,0.0001865,2]
[374647829,1753399440214,-460.0,0.0001865,2]
[374647830,1753399440236,-460.0,0.0001865,2]
[374647831,1753399440258,-460.0,0.0001865,2]
[374647832,1753399440285,-192.34568573,0.0001865,2]
[374647833,1753399440309,-604.05505533,0.0001865,2]
[374647834,1753399440332,-201.81291569,0.0001865,2]
[374647835,1753399440353,-460.0,0.0001865,2]
[374647836,1753399440377,-209.65719395,0.0001865,2]
[374647837,1753399440399,-460.0,0.0001865,2]
[374647838,1753399440425,-228.22434085,0.0001865,2]
[374647839,1753399440446,-460.0,0.0001865,2]
[374647840,1753399440470,-371.97397369,0.0001865,2]
[374647841,1753399440492,-460.0,0.0001865,2]
[374647842,1753399440516,-500.0,0.0001865,2]
[374647843,1753399440542,-254.12470583,0.0001865,2]
[374647844,1753399440564,-3529.99432406,0.0001865,2]
[374647845,1753399444483,-160.17750166,0.0001865,2]
[374647846,1753399447275,-223.88805302,0.00018649,2]
[374647847,1753399449981,-76.11194698,0.00018649,2]
[374647848,1753399450013,-87.12131337,0.0001865,2]
[374647849,1753399452201,-221.10568074,0.0001865,2]
[374647850,1753399455500,-156.07329561,0.0001865,2]
[374647851,1753399455523,-38.89741389,0.0001865,2]
[374647852,1753399460427,-186.73721899,0.00018529,2]
[374647853,1753399464373,-298.32710348,0.00018529,2]
[374647854,1753399467302,-243.39770188,0.00018529,2]
[374647855,1753399470313,-298.6865238,0.00018529,2]
[374647856,1753399472919,-341.93393684,0.00018529,2]
[374647857,1753399476417,-383.00705925,0.00018529,2]
[374647858,1753399476744,189.57461672,0.00018091,2]
[374647859,1753399480301,-178.3929195,0.00018529,2]
[374647860,1753399487333,-159.85245639,0.00018529,2]
[374647861,1753399489101,-176.51416252,0.00018529,2]
[374647862,1753399493908,-167.9460186,0.00018529,2]
[374647863,1753399497510,-396.49753547,0.00018529,2]
[374647864,1753399502332,-165.71210128,0.00018529,2]
[374647865,1753399506464,-209.12318463,0.00018529,2]
[374647866,1753399508573,-300.0,0.00018529,2]
[374647868,1753399510742,-102.94316316,0.00018529,2]
[374647869,1753399510768,-357.05683684,0.00018628,2]
[374647870,1753399512336,-300.0,0.00018628,2]
[374647871,1753399515060,-306.25780135,0.00018628,2]
[374647873,1753399518388,-153.74219865,0.00018628,2]
[374647874,1753399521979,-141.68632712,0.00018628,2]
[374647875,1753399522002,-300.0,0.00018648,2]
[374647876,1753399522025,-300.0,0.00018648,2]
[374647877,1753399522051,-56.71367288,0.00018648,2]
[374647878,1753399525305,-243.28632712,0.00018648,2]
[374647879,1753399525330,-56.71367288,0.00018648,2]
[374647880,1753399527053,-586.25780135,0.00018648,2]
[374647881,1753399530468,-300.0,0.00018648,2]
[374647882,1753399533167,-178.28110486,0.00018551,2]
[374647883,1753399533194,-121.71889514,0.00018648,2]
[374647884,1753399541588,-176.51416252,0.00018549,2]
[374647885,1753399541614,-135.30963063,0.00018648,2]
[374647886,1753399541637,-300.0,0.00018648,2]
[374647887,1753399541661,-361.04384555,0.00018649,2]
[374647888,1753399541684,-500.0,0.00018649,2]
[374647889,1753399541706,-183.47667746,0.00018649,2]
[374647890,1753399541728,-330.59578422,0.00018649,2]
[374647891,1753399541752,-579.42997342,0.00018649,2]
[374647892,1753399541776,-380.36216783,0.00018649,2]
[374647893,1753399541798,-313.99605618,0.00018649,2]
[374647894,1753399541824,-500.0,0.00018649,2]
[374647895,1753399541848,-383.00705925,0.00018649,2]
[374647896,1753399541871,-500.0,0.00018649,2]
[374647897,1753399541893,-500.0,0.00018649,2]
[374647898,1753399541916,-276.79905301,0.00018649,2]
[374647899,1753399541938,-500.0,0.00018649,2]
[374647900,1753399541967,-510.83655635,0.00018649,2]
[374647901,1753399541988,-333.3350158,0.00018649,2]
[374647902,1753399542017,-500.0,0.00018649,2]
[374647903,1753399542046,-500.0,0.00018649,2]
[374647904,1753399542069,-300.0,0.00018649,2]
[374647905,1753399542090,-500.0,0.00018649,2]
[374647906,1753399542114,-500.0,0.00018649,2]
[374647907,1753399542135,-500.0,0.00018649,2]
[374647908,1753399542157,-500.0,0.00018649,2]
[374647909,1753399542178,-467.41034563,0.00018649,2]
[374647910,1753399542198,-435.49543323,0.00018649,2]
[374647911,1753399542220,-546.81273055,0.00018649,2]
[374647912,1753399542241,-500.0,0.00018649,2]
[374647913,1753399542263,-421.10258611,0.0001865,2]
[374647914,1753399542284,-172.67572691,0.0001865,2]
[374647915,1753399542305,-460.0,0.0001865,2]
[374647916,1753399542328,-460.0,0.0001865,2]
[374647917,1753399542350,-460.0,0.0001865,2]
[374647918,1753399542372,-460.0,0.0001865,2]
[374647919,1753399542395,-551.79719535,0.0001865,2]
[374647927,1753399635095,-300.0,0.00018648,2]
[374647928,1753399635116,-405.66310978,0.00018649,2]
[374647930,1753399649093,-54.33689022,0.00018649,2]
[374647931,1753399649115,-460.0,0.00018649,2]
[374647932,1753399649136,-1200.0,0.00018649,2]
[374647933,1753399649158,-460.0,0.00018649,2]
[374647934,1753399649179,-461.81768093,0.00018649,2]
[374647935,1753399649205,-447.3990306,0.00018649,2]
[374647936,1753399649228,-218.60114952,0.0001865,2]
[374647937,1753399649255,-200.0,0.0001865,2]
[374647938,1753399649280,-27.21280465,0.0001865,2]
[374647939,1753399649302,-322.93881865,0.0001865,2]
[374647940,1753399656157,-2811.08287909,0.00018628,2]
[374647941,1753399656179,-137.06118135,0.0001865,2]
[374647942,1753399656206,-607.69,0.0001865,2]
[374647943,1753399656228,-563.63,0.0001865,2]
[374647944,1753399656250,-460.0,0.0001865,2]
[374647945,1753399656274,-420.53593956,0.0001865,2]
[374647947,1753399687729,-152.17119309,0.00018551,2]
[374647948,1753399689310,-26.10991176,0.00018551,2]
[374647949,1753399692975,414.95411149,0.00010618,2]
[374647951,1753399694753,11377.48282787,0.000125,2]
[374647952,1753399705311,258.69535105,0.0001814,2]
[374647953,1753399705979,277.71631115,0.00014114,2]
[374647954,1753399707399,275.52730446,0.0001814,2]
[374647955,1753399707895,282.56319423,0.0001,2]
[374647957,1753399712747,7039.11728174,0.00017,2]
[374647958,1753399716780,580.4823896,0.000149,2]
[374647959,1753399717076,1000.0,0.0001,2]
[374647960,1753399717679,7973.99277986,0.00018,2]
[374647961,1753399717701,6914.70430509,0.00018,2]
[374647962,1753399721025,210.67090512,0.00016,2]
[374647963,1753399721936,5933.68481378,0.00018,2]
[374647964,1753399722411,5507.53541507,0.0001,2]
[374647965,1753399726854,-300.0,0.00018649,2]
[374647966,1753399726879,-1734.27406044,0.0001865,2]
[374647967,1753399726902,-693.55,0.0001865,2]
[374647968,1753399726925,-460.0,0.0001865,2]
[374647969,1753399726949,-6403.75,0.0001865,2]
[374647970,1753399726971,-460.0,0.0001865,2]
[374647971,1753399727000,-2963.71,0.0001865,2]
[374647972,1753399727024,-460.0,0.0001865,2]
[374647973,1753399727049,-525.47,0.0001865,2]
[374647974,1753399727074,-460.0,0.0001865,2]
[374647975,1753399727098,-539.24593956,0.0001865,2]
[374647977,1753399787963,-300.0,0.00018649,2]
[374647978,1753399787985,-460.0,0.00018649,2]
[374647979,1753399788015,-460.0,0.00018649,2]
[374647980,1753399788038,-395.82406044,0.0001865,2]
[374647981,1753399788062,-695.65,0.0001865,2]
[374647982,1753399788084,-460.0,0.0001865,2]
[374647983,1753399788110,-460.0,0.0001865,2]
[374647984,1753399788134,-2730.7,0.0001865,2]
[374647985,1753399788156,-460.0,0.0001865,2]
[374647986,1753399788181,-3445.19,0.0001865,2]
[374647987,1753399788202,-460.0,0.0001865,2]
[374647988,1753399788225,-460.0,0.0001865,2]
[374647989,1753399788249,-460.0,0.0001865,2]
[374647990,1753399788271,-780.66,0.0001865,2]
[374647991,1753399788293,-460.0,0.0001865,2]
[374647992,1753399788316,-579.36,0.0001865,2]
[374647993,1753399788339,-460.0,0.0001865,2]
[374647994,1753399788361,-460.0,0.0001865,2]
[374647995,1753399788385,-1012.61593956,0.0001865,2]
[374648017,1753399832577,-1200.0,0.00018648,2]
[374648019,1753399832587,-461.1280805,0.00018649,2]
[374648021,1753399832598,-300.0,0.00018649,2]
[374648023,1753399832607,-300.0,0.00018649,2]
[374648025,1753399832617,-300.0,0.00018649,2]
[374648027,1753399832626,-233.62399358,0.00018649,2]
[374648043,1753399832748,-66.37600642,0.00018649,2]
[374648045,1753399832757,-300.0,0.00018649,2]
[374648047,1753399832767,-460.0,0.00018649,2]
[374648049,1753399832776,-460.0,0.00018649,2]
[374648051,1753399832786,-460.0,0.00018649,2]
[374648053,1753399832795,-460.0,0.00018649,2]
[374648055,1753399832805,-500.0,0.00018649,2]
[374648057,1753399832814,-490.34,0.00018649,2]
[374648059,1753399832824,-460.0,0.00018649,2]
[374648061,1753399832834,-271.00273005,0.00018649,2]